[Event "AUT Bundesliga Women 2021-22"]
[Site "Austria"]
[Date "2022.01.23"]
[Round "4.15"]
[White "Zoehrer, Sarah"]
[Black "Mattersberger, Melanie"]
[Result "1/2-1/2"]
[ECO "A47"]
[WhiteElo "1650"]
[BlackElo "1752"]
[Annotator "NA RC"]
[PlyCount "63"]
[EventDate "2021.11.06"]
[EventType "team-tourn"]
[EventCountry "AUT"]
[SourceTitle "playchess.com"]
[Source "ChessBase"]
[SourceQuality "1"]
[TimeControl "40/5400+30:1800+30"]

1. d4 {[%emt 0:00:03]} Nf6 {[%emt 0:00:04]} 2. Nf3 {[%emt 0:00:31]} e6 {[%emt 0:00:10]} 3. Bf4 {[%emt 0:00:42]} b6 {[%emt 0:00:07]} 4. e3 {[%emt 0:00:35]} Bb7 {[%emt 0:00:06]} 5. Be2 {[%emt 0:00:46]} Be7 {[%emt 0:00:11]} 6. O-O {[%emt 0:00:14]} d6 {[%emt 0:00:33]} 7. c4 {[%emt 0:04:07]} Nh5 {[%emt 0:00:28]} 8. Bg3 {[%emt 0:01:42]} Nxg3 {[%emt 0:00:07]} 9. fxg3 {[%emt 0:03:39]} Nd7 {[%emt 0:00:22]} 10. Nc3 {[%emt 0:01:29]} O-O {[%emt 0:00:07]} 11. Qd3 {[%emt 0:02:21]} c5 {[%emt 0:08:41]} 12. d5 {[%emt 0:11:12]} e5 {[%emt 0:05:18]} 13. e4 {[%emt 0:06:42]} Bc8 {[%emt 0:02:17]} 14. h3 {[%emt 0:08:49]} h6 {[%emt 0:06:07]} 15. Nd1 {[%emt 0:07:27]} Nf6 {[%emt 0:06:47]} 16. Nh4 {[%emt 0:03:15]} g6 {[%emt 0:17:50]} 17. Nf3 {[%emt 0:19:30]} Nh5 {[%emt 0:03:53]} 18. Nh2 {[%emt 0:01:14]} Nf6 {[%emt 0:03:08]} 19. Ne3 {[%emt 0:01:23]} Kg7 {[%emt 0:00:42]} 20. Rf2 {[%emt 0:03:18]} Nh7 {[%emt 0:03:25]} 21. Raf1 {[%emt 0:02:06]} Rb8 {[%emt 0:02:32]} 22. Neg4 {[%emt 0:03:37]} h5 {[%emt 0:02:02]} 23. Ne3 {[%emt 0:00:20]} Bg5 {[%emt 0:02:24]} 24. Nf3 {[%emt 0:01:23]} Bh6 {[%emt 0:06:25]} 25. Nc2 {[%emt 0:05:01]} Ng5 {[%emt 0:01:58]} 26. Nxg5 {[%emt 0:01:56]} Qxg5 {[%emt 0:02:07]} 27. Rf6 {[%emt 0:02:36]} Rb7 {[%emt 0:05:24]} 28. h4 {[%emt 0:03:34]} Qxf6 {[%emt 0:00:37]} 29. Rxf6 {[%emt 0:00:06]} Kxf6 {[%emt 0:00:06]} 30. Ne1 {[%emt 0:00:44]} Kg7 {[%emt 0:00:45]} 31. Nf3 {[%emt 0:01:13]} f5 {[%emt 0:21:17]} 32. Ng5 {[%emt 0:04:55]} 1/2-1/2

[Event "AUT Bundesliga Women 2021-22"]
[Site "Austria"]
[Date "2022.03.25"]
[Round "5.1"]
[White "Katter, Katharina"]
[Black "Richterova, Natasa"]
[Result "1/2-1/2"]
[ECO "A49"]
[WhiteElo "1981"]
[BlackElo "2162"]
[Annotator "NA"]
[PlyCount "118"]
[EventDate "2021.11.06"]
[EventType "team-tourn"]
[EventCountry "AUT"]
[SourceTitle "playchess.com"]
[Source "ChessBase"]
[SourceQuality "1"]
[TimeControl "40/5400+30:1800+30"]

1. d4 {[%emt 0:00:01]} Nf6 {[%emt 0:00:06]} 2. Nf3 {[%emt 0:00:07]} g6 {[%emt 0:00:24]} 3. g3 {[%emt 0:00:19]} Bg7 {[%emt 0:00:04]} 4. Bg2 {[%emt 0:00:07]} d6 {[%emt 0:00:57]} 5. O-O {[%emt 0:00:11]} O-O {[%emt 0:00:11]} 6. Re1 {[%emt 0:00:30]} Nbd7 {[%emt 0:00:12]} 7. e4 {[%emt 0:00:09]} e5 {[%emt 0:00:21]} 8. Nc3 {[%emt 0:01:00]} c6 {[%emt 0:00:25]} 9. a4 {[%emt 0:01:14]} Qc7 {[%emt 0:02:39]} 10. b3 {[%emt 0:05:23]} Re8 {[%emt 0:01:24]} 11. Ba3 {[%emt 0:06:14]} Bf8 {[%emt 0:05:29]} 12. Qd2 {[%emt 0:03:40]} a5 {[%emt 0:11:03]} 13. Rad1 {[%emt 0:03:18]} Qb6 {[%emt 0:02:49]} 14. dxe5 {[%emt 0:11:13]} dxe5 {[%emt 0:00:09]} 15. Bxf8 {[%emt 0:00:08]} Nxf8 {[%emt 0:00:21]} 16. Qd6 {[%emt 0:01:05]} Ng4 {[%emt 0:00:23]} 17. Re2 {[%emt 0:05:54]} Be6 {[%emt 0:18:30]} 18. Red2 {[%emt 0:07:30]} Rad8 {[%emt 0:10:19]} 19. Qa3 {[%emt 0:00:35]} Ra8 {[%emt 0:23:36]} 20. h3 {[%emt 0:06:09]} Ne3 {[%emt 0:01:22]} 21. Re1 {[%emt 0:02:25]} Nxg2 {[%emt 0:00:12]} 22. Kxg2 {[%emt 0:00:02]} Qc7 {[%emt 0:10:58]} 23. Qc5 {[%emt 0:04:27]} Nd7 {[%emt 0:04:03]} 24. Qe3 {[%emt 0:02:29]} f6 {[%emt 0:03:55]} 25. Red1 {[%emt 0:03:49]} Qc8 {[%emt 0:01:41]} 26. Qh6 {[%emt 0:02:51]} Qc7 {[%emt 0:00:34]} 27. Nh2 {[%emt 0:02:28]} Rad8 {[%emt 0:00:45]} 28. Ng4 {[%emt 0:05:30]} Bxg4 {[%emt 0:00:17]} 29. hxg4 {[%emt 0:00:03]} Nc5 {[%emt 0:00:34]} 30. g5 {[%emt 0:01:27]} Rxd2 {[%emt 0:00:38]} 31. Rxd2 {[%emt 0:00:23]} Qe7 {[%emt 0:00:42]} 32. gxf6 {[%emt 0:00:44]} Qxf6 {[%emt 0:00:01]} 33. Qe3 {[%emt 0:00:59]} b6 {[%emt 0:01:07]} 34. Nd1 {[%emt 0:02:00]} Rd8 {[%emt 0:00:31]} 35. Rxd8+ {[%emt 0:05:54]} Qxd8 {[%emt 0:00:01]} 36. Nb2 {[%emt 0:00:16]} Qd4 {[%emt 0:01:10]} 37. Qxd4 {[%emt 0:00:07]} exd4 {[%emt 0:00:01]} 38. Nc4 {[%emt 0:02:20]} d3 {[%emt 0:01:01]} 39. cxd3 {[%emt 0:00:44]} Nxd3 {[%emt 0:00:26]} 40. Nxb6 {[%emt 0:00:25]} Nc5 {[%emt 0:00:04]} 41. Nc4 {[%emt 0:30:23]} Nxb3 {[%emt 0:30:04]} 42. Kf3 {[%emt 0:01:54]} Kg7 {[%emt 0:00:00]} 43. Ke3 {[%emt 0:00:00]} Kf6 {[%emt 0:00:00]} 44. Kd3 {[%emt 0:00:00]} Nc5+ {[%emt 0:00:00]} 45. Kd4 {[%emt 0:00:00]} Nxa4 {[%emt 0:00:00]} 46. Nxa5 {[%emt 0:00:00]} c5+ {[%emt 0:00:00]} 47. Kc4 {[%emt 0:00:00]} h5 {[%emt 0:00:00]} 48. f4 {[%emt 0:00:00]} g5 {[%emt 0:00:00]} 49. fxg5+ {[%emt 0:00:00]} Kxg5 {[%emt 0:00:00]} 50. e5 {[%emt 0:00:00]} Kf5 {[%emt 0:00:00]} 51. Nc6 {[%emt 0:00:00]} Ke6 {[%emt 0:00:00]} 52. Kb5 {[%emt 0:00:00]} Nc3+ {[%emt 0:00:00]} 53. Kxc5 {[%emt 0:00:00]} Ne4+ {[%emt 0:00:00]} 54. Kd4 {[%emt 0:00:00]} Nxg3 {[%emt 0:00:00]} 55. Ke3 {[%emt 0:00:00]} Kd5 {[%emt 0:00:00]} 56. Kf4 {[%emt 0:00:00]} Ne2+ {[%emt 0:00:00]} 57. Kg5 {[%emt 0:00:00]} Kxc6 {[%emt 0:00:00]} 58. Kxh5 {[%emt 0:00:00]} Kd5 {[%emt 0:00:00]} 59. Kg5 {[%emt 0:00:00]} Kxe5 {[%emt 0:00:00]} 1/2-1/2

[Event "AUT Bundesliga Women 2021-22"]
[Site "Austria"]
[Date "2022.03.25"]
[Round "5.2"]
[White "Batyte, Daiva"]
[Black "Katter, Marlene"]
[Result "1/2-1/2"]
[ECO "A13"]
[WhiteElo "2105"]
[BlackElo "1785"]
[Annotator "NA"]
[PlyCount "128"]
[EventDate "2021.11.06"]
[EventType "team-tourn"]
[EventCountry "AUT"]
[SourceTitle "playchess.com"]
[Source "ChessBase"]
[SourceQuality "1"]
[TimeControl "40/5400+30:1800+30"]

1. c4 {[%emt 0:00:04]} e6 {[%emt 0:00:05]} 2. g3 {[%emt 0:00:07]} d5 {[%emt 0:00:12]} 3. Bg2 {[%emt 0:00:05]} Nf6 {[%emt 0:00:12]} 4. Nf3 {[%emt 0:00:53]} dxc4 {[%emt 0:00:18]} 5. Qc2 {[%emt 0:00:29]} c6 {[%emt 0:00:46]} 6. Qxc4 {[%emt 0:00:26]} b5 {[%emt 0:00:29]} 7. Qc2 {[%emt 0:00:25]} Bb7 {[%emt 0:00:34]} 8. d4 {[%emt 0:02:17]} Nbd7 {[%emt 0:00:35]} 9. Nc3 {[%emt 0:01:35]} a6 {[%emt 0:01:09]} 10. Nd2 {[%emt 0:04:41]} Qb6 {[%emt 0:04:04]} 11. a4 {[%emt 0:06:22]} Be7 {[%emt 0:10:00]} 12. O-O {[%emt 0:02:08]} O-O {[%emt 0:01:34]} 13. Nb3 {[%emt 0:02:11]} c5 {[%emt 0:04:43]} 14. a5 {[%emt 0:16:27]} Qa7 {[%emt 0:03:30]} 15. Bxb7 {[%emt 0:03:16]} Qxb7 {[%emt 0:00:33]} 16. Bg5 {[%emt 0:01:50]} Rac8 {[%emt 0:03:31]} 17. dxc5 {[%emt 0:09:06]} Nxc5 {[%emt 0:01:14]} 18. Nxc5 {[%emt 0:00:21]} Rxc5 {[%emt 0:02:08]} 19. Be3 {[%emt 0:00:23]} Rcc8 {[%emt 0:01:50]} 20. Qb3 {[%emt 0:01:20]} Bc5 {[%emt 0:04:04]} 21. Bxc5 {[%emt 0:01:03]} Rxc5 {[%emt 0:00:11]} 22. Rfd1 {[%emt 0:02:10]} Qc7 {[%emt 0:02:12]} 23. Rd4 {[%emt 0:03:40]} h6 {[%emt 0:03:19]} 24. Qd1 {[%emt 0:01:22]} e5 {[%emt 0:03:45]} 25. Nd5 {[%emt 0:01:34]} Nxd5 {[%emt 0:01:06]} 26. Rxd5 {[%emt 0:00:07]} Rxd5 {[%emt 0:00:29]} 27. Qxd5 {[%emt 0:00:07]} Rd8 {[%emt 0:00:21]} 28. Qe4 {[%emt 0:00:48]} Qc5 {[%emt 0:07:49]} 29. Kg2 {[%emt 0:03:12]} Qd5 {[%emt 0:02:41]} 30. Qf3 {[%emt 0:03:27]} Qxf3+ {[%emt 0:05:47]} 31. Kxf3 {[%emt 0:00:34]} Rd2 {[%emt 0:00:54]} 32. Rc1 {[%emt 0:03:04]} b4 {[%emt 0:02:57]} 33. Rc6 {[%emt 0:00:45]} Rxb2 {[%emt 0:00:56]} 34. Rxa6 {[%emt 0:00:07]} b3 {[%emt 0:04:01]} 35. Rb6 {[%emt 0:00:24]} Ra2 {[%emt 0:00:41]} 36. a6 {[%emt 0:00:39]} b2 {[%emt 0:00:34]} 37. h4 {[%emt 0:00:42]} Rxa6 {[%emt 0:01:31]} 38. Rxb2 {[%emt 0:00:07]} h5 {[%emt 0:02:13]} 39. Rb5 {[%emt 0:00:38]} f6 {[%emt 0:00:35]} 40. Rb2 {[%emt 0:01:46]} Ra4 {[%emt 0:00:42]} 41. e3 {[%emt 0:30:25]} Kf7 {[%emt 0:31:31]} 42. Rb7+ {[%emt 0:00:22]} Kg6 {[%emt 0:00:35]} 43. Rd7 {[%emt 0:00:11]} Rb4 {[%emt 0:00:54]} 44. e4 {[%emt 0:00:39]} Rb3+ {[%emt 0:01:47]} 45. Ke2 {[%emt 0:00:24]} Rb2+ {[%emt 0:00:36]} 46. Ke3 {[%emt 0:00:11]} Rb3+ {[%emt 0:00:47]} 47. Rd3 {[%emt 0:00:08]} Rb2 {[%emt 0:00:57]} 48. Kf3 {[%emt 0:03:05]} Rb4 {[%emt 0:01:03]} 49. Ke3 {[%emt 0:00:57]} Rb2 {[%emt 0:00:23]} 50. f4 {[%emt 0:00:25]} exf4+ {[%emt 0:01:49]} 51. Kxf4 {[%emt 0:00:34]} Rb6 {[%emt 0:01:23]} 52. Rd5 {[%emt 0:00:33]} Rb4 {[%emt 0:01:11]} 53. Rd1 {[%emt 0:00:36]} Ra4 {[%emt 0:01:08]} 54. Rg1 {[%emt 0:00:43]} f5 {[%emt 0:00:51]} 55. Re1 {[%emt 0:00:17]} fxe4 {[%emt 0:00:38]} 56. Rxe4 {[%emt 0:00:12]} Rxe4+ {[%emt 0:00:30]} 57. Kxe4 {[%emt 0:00:07]} Kf6 {[%emt 0:00:08]} 58. Kf4 {[%emt 0:00:29]} g6 {[%emt 0:00:18]} 59. Ke4 {[%emt 0:02:04]} Ke6 {[%emt 0:00:15]} 60. Kf4 {[%emt 0:00:07]} Kf6 {[%emt 0:00:10]} 61. Ke4 {[%emt 0:00:13]} Ke6 {[%emt 0:00:06]} 62. Kf4 {[%emt 0:00:05]} Kf6 {[%emt 0:00:06]} 63. Ke4 {[%emt 0:00:05]} Ke6 {[%emt 0:00:08]} 64. Kf4 {[%emt 0:00:05]} Kf6 {[%emt 0:00:03]} 1/2-1/2

[Event "AUT Bundesliga Women 2021-22"]
[Site "Austria"]
[Date "2022.03.25"]
[Round "5.3"]
[White "Truszkiewicz, Eliza"]
[Black "Mar, Karmen"]
[Result "0-1"]
[ECO "B22"]
[WhiteElo "1897"]
[BlackElo "2074"]
[Annotator "ChessBase"]
[PlyCount "100"]
[EventDate "2021.11.06"]
[EventType "team-tourn"]
[EventCountry "AUT"]
[SourceTitle "playchess.com"]
[Source "ChessBase"]
[SourceQuality "1"]
[TimeControl "40/5400+30:1800+30"]

1. e4 {[%emt 0:00:04]} c5 {[%emt 0:00:14]} 2. c3 {[%emt 0:00:06]} d5 {[%emt 0:00:17]} 3. exd5 {[%emt 0:00:32]} Qxd5 {[%emt 0:00:02]} 4. Nf3 {[%emt 0:01:27]} Nf6 {[%emt 0:01:16]} 5. Na3 {[%emt 0:03:27]} e6 {[%emt 0:08:28]} 6. Bc4 {[%emt 0:07:07]} Qd8 {[%emt 0:05:22]} 7. O-O {[%emt 0:02:26]} Nc6 {[%emt 0:04:25]} 8. Nc2 {[%emt 0:02:54]} Be7 {[%emt 0:06:18]} 9. Re1 {[%emt 0:01:13]} O-O {[%emt 0:00:52]} 10. d4 {[%emt 0:05:13]} Qc7 {[%emt 0:12:22]} 11. Bg5 {[%emt 0:08:38]} cxd4 {[%emt 0:14:26]} 12. Ncxd4 {[%emt 0:09:51]} Nxd4 {[%emt 0:07:43]} 13. Qxd4 {[%emt 0:00:11]} Rd8 {[%emt 0:00:06]} 14. Qf4 {[%emt 0:03:43]} Qxf4 {[%emt 0:03:20]} 15. Bxf4 {[%emt 0:00:06]} Bd7 {[%emt 0:02:30]} 16. Ne5 {[%emt 0:16:55]} Be8 {[%emt 0:01:45]} 17. Rad1 {[%emt 0:02:52]} b5 {[%emt 0:05:17]} 18. Bb3 {[%emt 0:00:52]} a5 {[%emt 0:00:55]} 19. Bc2 {[%emt 0:03:28]} h6 {[%emt 0:09:15]} 20. Nd3 {[%emt 0:11:40]} Rac8 {[%emt 0:01:20]} 21. Bb1 {[%emt 0:03:22]} Nd5 {[%emt 0:02:13]} 22. Bg3 {[%emt 0:00:22]} Nb6 {[%emt 0:00:45]} 23. f4 {[%emt 0:03:28]} Bf6 {[%emt 0:02:15]} 24. Bf2 {[%emt 0:01:50]} Nc4 {[%emt 0:03:41]} 25. Re2 {[%emt 0:00:28]} Bc6 {[%emt 0:01:48]} 26. Rde1 {[%emt 0:01:00]} Rb8 {[%emt 0:01:25]} 27. a3 {[%emt 0:01:47]} Nb6 {[%emt 0:00:52]} 28. Ne5 {[%emt 0:01:49]} Bd5 {[%emt 0:00:51]} 29. Be4 {[%emt 0:01:28]} Bxe5 {[%emt 0:02:38]} 30. fxe5 {[%emt 0:00:47]} Bxe4 {[%emt 0:01:11]} 31. Rxe4 {[%emt 0:00:07]} Nc4 {[%emt 0:00:20]} 32. R4e2 {[%emt 0:00:26]} Rd5 {[%emt 0:00:45]} 33. Bd4 {[%emt 0:00:38]} a4 {[%emt 0:00:55]} 34. Rf1 {[%emt 0:00:44]} Rbd8 {[%emt 0:00:34]} 35. Rb1 {[%emt 0:01:39]} R8d7 {[%emt 0:00:48]} 36. Kf2 Na5 {[%emt 0:00:24]} 37. Re4 {[%emt 0:01:21]} Nc6 {[%emt 0:00:27]} 38. Ke3 {[%emt 0:00:42]} h5 {[%emt 0:00:46]} 39. Rc1 {[%emt 0:00:33]} Na5 {[%emt 0:00:23]} 40. Rc2 {[%emt 0:00:24]} Kh7 {[%emt 0:00:32]} 41. g4 {[%emt 0:34:02]} hxg4 {[%emt 0:14:01]} 42. Rxg4 {[%emt 0:00:00]} Nc6 {[%emt 0:02:23]} 43. Re4 {[%emt 0:00:00]} g6 {[%emt 0:02:58]} 44. Rg2 {[%emt 0:00:00]} Rd8 {[%emt 0:00:43]} 45. h4 {[%emt 0:00:00]} Ne7 {[%emt 0:01:32]} 46. Rg5 {[%emt 0:00:00]} Nf5+ {[%emt 0:01:59]} 47. Kd3 {[%emt 0:00:00]} Kh6 {[%emt 0:00:41]} 48. Rgg4 {[%emt 0:00:00]} f6 {[%emt 0:03:41]} 49. Ke2 {[%emt 0:00:00]} Nxd4+ {[%emt 0:01:35]} 50. cxd4 {[%emt 0:00:00]} f5 {[%emt 0:00:28]} 0-1

[Event "AUT Bundesliga Women 2021-22"]
[Site "Austria"]
[Date "2022.03.25"]
[Round "5.4"]
[White "Saler-Grafenberger, Elisabeth"]
[Black "Zechner, Andrea"]
[Result "1/2-1/2"]
[ECO "D17"]
[WhiteElo "1828"]
[BlackElo "1851"]
[Annotator "NA"]
[PlyCount "120"]
[EventDate "2021.11.06"]
[EventType "team-tourn"]
[EventCountry "AUT"]
[SourceTitle "playchess.com"]
[Source "ChessBase"]
[SourceQuality "1"]
[TimeControl "40/5400+30:1800+30"]

1. d4 {[%emt 0:00:05]} d5 {[%emt 0:00:13]} 2. Nf3 {[%emt 0:00:47]} Nf6 {[%emt 0:00:05]} 3. c4 {[%emt 0:01:24]} c6 {[%emt 0:03:08]} 4. Nc3 {[%emt 0:03:41]} dxc4 {[%emt 0:05:56]} 5. a4 {[%emt 0:01:41]} Bf5 {[%emt 0:00:48]} 6. Ne5 {[%emt 0:02:43]} Nbd7 {[%emt 0:06:42] 6...Nbd7 scores better than 6...e6.} 7. Nxc4 {[%emt 0:03:48]} Nb6 {[%emt 0:03:35]} 8. e3 {[%emt 0:02:09]} e6 {[%emt 0:06:23]} 9. Be2 {[%emt 0:04:18]} Nxc4 {[%emt 0:06:09]} 10. Bxc4 {[%emt 0:00:16]} Bd6 {[%emt 0:01:51]} 11. Bd3 {[%emt 0:09:16] [#]} Bg6 $146 {[%emt 0:08:45]} ({Predecessor:} 11... Bxd3 12. Qxd3 e5 13. O-O Qe7 14. Bd2 e4 15. Qe2 O-O 16. f3 exf3 17. gxf3 Nd5 {0-1 (41) Pyke,M (2218)-Goldenberg,I (2386) Melbourne 2008}) 12. Qc2 {[%emt 0:06:31]} e5 {[%emt 0:13:12]} 13. O-O {[%emt 0:06:41]} exd4 {[%emt 0:21:45]} 14. exd4 {[%emt 0:02:09]} O-O {[%emt 0:04:03]} 15. Bxg6 {[%emt 0:03:36]} hxg6 {[%emt 0:00:12]} 16. h3 {[%emt 0:03:58]} Bc7 {[%emt 0:00:56]} 17. Ne2 {[%emt 0:03:04]} Nd5 {[%emt 0:00:37]} 18. Qb3 {[%emt 0:06:23]} Qd6 {[%emt 0:02:00]} 19. g3 {[%emt 0:04:43]} Rab8 {[%emt 0:07:30]} 20. Nf4 {[%emt 0:01:50]} Rfd8 {[%emt 0:00:21]} 21. Nxd5 {[%emt 0:00:40]} Qxd5 {[%emt 0:00:13]} 22. Qxd5 {[%emt 0:00:36]} Rxd5 {[%emt 0:00:07]} 23. Rd1 {[%emt 0:12:58]} Rbd8 {[%emt 0:00:33]} 24. Be3 {[%emt 0:01:45]} Bb6 {[%emt 0:00:12]} 25. Kf1 {[%emt 0:05:36]} Bxd4 {[%emt 0:00:33]} 26. Bxd4 Rxd4 {[%emt 0:00:06]} 27. Rxd4 {[%emt 0:00:52]} Rxd4 {[%emt 0:00:04]} 28. Ke2 {[%emt 0:00:16]} Kf8 {[%emt 0:00:50]} 29. b3 {[%emt 0:02:11]} Ke7 {[%emt 0:00:44]} 30. Rc1 {[%emt 0:00:53]} Kd6 {[%emt 0:00:54]} 31. Ke3 {[%emt 0:00:45]} Rd5 {[%emt 0:00:44]} 32. f4 {[%emt 0:01:52]} Rh5 {[%emt 0:02:26]} 33. h4 {[%emt 0:01:08]} Rd5 {[%emt 0:00:35]} 34. Rc3 {[%emt 0:00:48]} b6 {[%emt 0:01:32]} 35. Ke4 {[%emt 0:01:15]} Rd1 {[%emt 0:00:42]} 36. Kf3 {[%emt 0:01:05]} c5 {[%emt 0:01:56]} 37. Re3 {[%emt 0:01:05]} a6 {[%emt 0:01:05]} 38. Ke2 {[%emt 0:01:08]} Rb1 {[%emt 0:00:50]} 39. Kd2 {[%emt 0:00:42]} b5 {[%emt 0:00:39]} 40. Kc2 {[%emt 0:00:39]} Rg1 {[%emt 0:00:22]} 41. axb5 {[%emt 0:30:58]} axb5 {[%emt 0:01:13]} 42. Kc3 {[%emt 0:00:00]} b4+ {[%emt 0:10:33]} 43. Kd3 {[%emt 0:00:00]} Kd5 {[%emt 0:06:33]} 44. Re5+ {[%emt 0:00:00]} Kc6 {[%emt 0:00:13]} 45. Re3 {[%emt 0:00:00]} f6 {[%emt 0:00:47]} 46. Kd2 {[%emt 0:00:00]} Rg2+ {[%emt 0:01:25]} 47. Kd1 {[%emt 0:00:00]} Kd5 {[%emt 0:01:47]} 48. Re7 {[%emt 0:00:00]} g5 {[%emt 0:07:43]} 49. hxg5 {[%emt 0:00:00]} Rxg3 {[%emt 0:00:58]} 50. Rxg7 {[%emt 0:00:00]} f5 {[%emt 0:02:49]} 51. Re7 {[%emt 0:00:00]} Rxb3 {[%emt 0:00:30]} 52. Re5+ {[%emt 0:00:09]} Kd4 {[%emt 0:00:26]} 53. Rxf5 {[%emt 0:00:22]} c4 {[%emt 0:00:30]} 54. g6 {[%emt 0:00:18]} Rg3 {[%emt 0:00:38]} 55. Rg5 {[%emt 0:00:26]} Rd3+ {[%emt 0:00:36]} 56. Ke2 {[%emt 0:00:31]} Re3+ {[%emt 0:00:24]} 57. Kf2 {[%emt 0:00:13]} ({Not} 57. Kd2 $2 c3+ 58. Kc1 Re1+ 59. Kc2 Kc4 $19) 57... Re8 {[%emt 0:01:15]} 58. f5 $11 {[%emt 0:00:25]} ({Not} 58. g7 $2 c3 59. f5 c2 $19) 58... Ke5 {[%emt 0:00:34]} 59. Rg4 {[%emt 0:00:53]} Kxf5 {[%emt 0:00:44]} 60. Rxc4 {[%emt 0:00:09]} Kxg6 {[%emt 0:00:48]} 1/2-1/2

[Event "AUT Bundesliga Women 2021-22"]
[Site "Austria"]
[Date "2022.03.25"]
[Round "5.7"]
[White "Worek, Joanna"]
[Black "Goeschl, Ortrun"]
[Result "1-0"]
[ECO "B00"]
[WhiteElo "2267"]
[BlackElo "1898"]
[Annotator "NA"]
[PlyCount "47"]
[EventDate "2021.11.06"]
[EventType "team-tourn"]
[EventCountry "AUT"]
[SourceTitle "playchess.com"]
[Source "ChessBase"]
[SourceQuality "1"]
[TimeControl "40/5400+30:1800+30"]

1. e4 {[%emt 0:00:03]} Nc6 {[%emt 0:00:57]} 2. Nf3 {[%emt 0:00:50]} Nf6 {[%emt 0:03:53]} 3. e5 {[%emt 0:06:06]} Nd5 {[%emt 0:00:32]} 4. d4 {[%emt 0:06:36]} e6 {[%emt 0:00:26]} 5. c4 {[%emt 0:04:55]} Bb4+ {[%emt 0:03:18]} 6. Bd2 {[%emt 0:00:49]} Bxd2+ {[%emt 0:04:58]} 7. Qxd2 {[%emt 0:00:28]} Nb6 {[%emt 0:00:25]} 8. d5 {[%emt 0:10:07]} exd5 {[%emt 0:03:43]} 9. cxd5 {[%emt 0:00:07]} Ne7 {[%emt 0:00:18]} 10. d6 {[%emt 0:12:41]} Ng6 {[%emt 0:00:36]} 11. Nc3 {[%emt 0:03:14]} c6 {[%emt 0:02:11]} 12. Bd3 {[%emt 0:02:51]} a5 {[%emt 0:07:11]} 13. h4 {[%emt 0:04:16]} a4 {[%emt 0:04:15]} 14. h5 {[%emt 0:00:22]} Nf8 {[%emt 0:00:08]} 15. h6 {[%emt 0:02:23]} g6 {[%emt 0:00:36]} 16. Ne4 {[%emt 0:03:45]} Nd5 {[%emt 0:01:54]} 17. Bc4 {[%emt 0:01:42]} Ne6 {[%emt 0:00:42]} 18. Bxd5 {[%emt 0:00:21]} cxd5 {[%emt 0:00:09]} 19. Nf6+ {[%emt 0:00:32]} Kf8 {[%emt 0:00:04]} 20. Rc1 {[%emt 0:01:20]} b6 {[%emt 0:01:33]} 21. O-O {[%emt 0:03:30]} Ra5 {[%emt 0:01:25]} 22. Ng5 {[%emt 0:03:28]} d4 {[%emt 0:04:40]} 23. Nxe6+ {[%emt 0:02:03]} dxe6 {[%emt 0:02:38]} 24. Qxd4 {[%emt 0:01:16]} 1-0

[Event "AUT Bundesliga Women 2021-22"]
[Site "Austria"]
[Date "2022.03.25"]
[Round "5.8"]
[White "Zeber, Katja"]
[Black "Theissl-Pokorna, Regina"]
[Result "0-1"]
[ECO "C55"]
[WhiteElo "1625"]
[BlackElo "2296"]
[Annotator "NA"]
[PlyCount "42"]
[EventDate "2021.11.06"]
[EventType "team-tourn"]
[EventCountry "AUT"]
[SourceTitle "playchess.com"]
[Source "ChessBase"]
[SourceQuality "1"]
[TimeControl "40/5400+30:1800+30"]

1. e4 {[%emt 0:00:04]} e5 {[%emt 0:00:06]} 2. Nf3 {[%emt 0:00:15]} Nc6 {[%emt 0:00:06]} 3. Bc4 {[%emt 0:00:26]} Nf6 {[%emt 0:00:23]} 4. d3 {[%emt 0:00:42]} Be7 {[%emt 0:01:43]} 5. O-O {[%emt 0:01:14]} d6 {[%emt 0:00:37]} 6. h3 {[%emt 0:04:19]} Na5 {[%emt 0:02:55]} 7. Bb3 {[%emt 0:02:05]} Nxb3 {[%emt 0:00:06]} 8. axb3 {[%emt 0:00:09]} O-O {[%emt 0:01:17]} 9. Be3 {[%emt 0:02:26]} a6 {[%emt 0:03:32]} 10. Nc3 {[%emt 0:06:09]} c5 {[%emt 0:10:06]} 11. Ne2 {[%emt 0:08:53]} h6 {[%emt 0:01:41]} 12. Nd2 {[%emt 0:22:12]} d5 {[%emt 0:14:05]} 13. exd5 {[%emt 0:05:56]} Nxd5 {[%emt 0:00:17]} 14. Ne4 {[%emt 0:02:15]} f5 {[%emt 0:03:16]} 15. N4c3 {[%emt 0:06:20]} f4 {[%emt 0:02:06]} 16. Nxd5 {[%emt 0:14:36]} Qxd5 {[%emt 0:00:11]} 17. Nc3 {[%emt 0:01:55]} Qc6 {[%emt 0:01:46]} 18. Bd2 {[%emt 0:10:41]} f3 {[%emt 0:00:42]} 19. g3 {[%emt 0:08:08]} Bxh3 {[%emt 0:03:08]} 20. Re1 {[%emt 0:00:07]} Qe6 {[%emt 0:03:52]} 21. Ne4 {[%emt 0:01:11]} Bg2 {[%emt 0:00:50]} 0-1